[Event "*** Titled Tuesday 3|2 Blitz"]
[Site "Chess.com"]
[Date "2015.04.07"]
[Round "8"]
[White "LyonBeast"]
[Black "GeorgMeier"]
[Result "0-1"]
[WhiteElo "2754"]
[BlackElo "2734"]
[TimeControl "180+2"]
[EndTime "12:46:38 PDT"]
[Termination "GeorgMeier won by resignation"]

1. Nf3 {[%clk 0:03:01.9]} 1... d5 {[%clk 0:03:00.4]} 2. c4 {[%clk 0:03:01]} 2...
d4 {[%clk 0:03:01.6]} 3. e3 {[%clk 0:03:00.6]} 3... Nc6 {[%clk 0:02:58.4]} 4.
exd4 {[%clk 0:02:55.1]} 4... Nxd4 {[%clk 0:03:00.3]} 5. Nxd4 {[%clk 0:02:53.5]}
5... Qxd4 {[%clk 0:03:02.2]} 6. Nc3 {[%clk 0:02:55.1]} 6... c6 {[%clk 0:03:03]}
7. d3 {[%clk 0:02:55]} 7... Nh6 {[%clk 0:02:53.7]} 8. Be2 {[%clk 0:02:50.1]}
8... Nf5 {[%clk 0:02:39.3]} 9. O-O {[%clk 0:02:35.2]} 9... g6 {[%clk 0:02:35.2]}
10. g4 {[%clk 0:02:15]} 10... Ng7 {[%clk 0:02:34.8]} 11. Be3 {[%clk 0:02:15]}
11... Qd7 {[%clk 0:02:28.2]} 12. d4 {[%clk 0:02:13.1]} 12... h5 {[%clk
0:02:28.6]} 13. f3 {[%clk 0:01:57.5]} 13... Qc7 {[%clk 0:02:20.1]} 14. Qd2
{[%clk 0:01:47.9]} 14... Ne6 {[%clk 0:01:59]} 15. d5 {[%clk 0:01:39.1]} 15...
hxg4 {[%clk 0:01:58.9]} 16. Rf2 {[%clk 0:01:23.8]} 16... gxf3 {[%clk 0:01:03.7]}
17. Bxf3 {[%clk 0:01:23]} 17... Ng7 {[%clk 0:01:01.8]} 18. Bf4 {[%clk
0:01:12.7]} 18... Qb6 {[%clk 0:00:47.6]} 19. c5 {[%clk 0:00:59.6]} 19... Qa6
{[%clk 0:00:40.6]} 20. Re1 {[%clk 0:00:56.4]} 20... Nf5 {[%clk 0:00:36.2]} 21.
d6 {[%clk 0:00:32.3]} 21... Be6 {[%clk 0:00:34]} 22. b4 {[%clk 0:00:29]} 22...
Bg7 {[%clk 0:00:29.6]} 23. b5 {[%clk 0:00:28]} 23... cxb5 {[%clk 0:00:29.5]} 24.
Nd5 {[%clk 0:00:28.6]} 24... O-O {[%clk 0:00:21.6]} 25. Nc7 {[%clk 0:00:22.4]}
25... Qa3 {[%clk 0:00:22.6]} 26. Nxa8 {[%clk 0:00:23.4]} 26... Qxc5 {[%clk
0:00:11.2]} 27. Rc1 {[%clk 0:00:21]} 27... Qa3 {[%clk 0:00:09.1]} 28. Nc7 {[%clk
0:00:19.2]} 28... Bc4 {[%clk 0:00:10]} 29. dxe7 {[%clk 0:00:19.2]} 29... Qxe7
{[%clk 0:00:10.4]} 30. Nd5 {[%clk 0:00:20.4]} 30... Qh4 {[%clk 0:00:09.8]} 31.
Bg5 {[%clk 0:00:15.8]} 31... Qd4 {[%clk 0:00:10.8]} 32. Ne7+ {[%clk 0:00:15.7]}
32... Nxe7 {[%clk 0:00:09.7]} 33. Bxe7 {[%clk 0:00:17.6]} 33... Re8 {[%clk
0:00:10.9]} 34. Bg5 {[%clk 0:00:18.5]} 34... Qb6 {[%clk 0:00:07.9]} 35. Kh1
{[%clk 0:00:19]} 35... Bd4 {[%clk 0:00:08.1]} 36. Rg2 {[%clk 0:00:20.2]} 36...
a5 {[%clk 0:00:08.6]} 37. Rd1 {[%clk 0:00:21.2]} 37... Bg7 {[%clk 0:00:08.4]}
38. Bf4 {[%clk 0:00:22.3]} 38... a4 {[%clk 0:00:08.5]} 39. Bd5 {[%clk
0:00:22.7]} 39... Qc5 {[%clk 0:00:07.8]} 40. Bxc4 {[%clk 0:00:21.5]} 40... bxc4
{[%clk 0:00:09.7]} 41. Qc2 {[%clk 0:00:20.9]} 41... b5 {[%clk 0:00:10.1]} 42. h3
{[%clk 0:00:21.3]} 42... Qc6 {[%clk 0:00:11.3]} 43. Kh2 {[%clk 0:00:22]} 43...
b4 {[%clk 0:00:12]} 44. Rc1 {[%clk 0:00:21.7]} 44... c3 {[%clk 0:00:12.6]} 45.
Bg3 {[%clk 0:00:22.6]} 45... Rc8 {[%clk 0:00:10.5]} 46. Rb1 {[%clk 0:00:23.4]}
46... Qb5 {[%clk 0:00:11.3]} 47. Rf2 {[%clk 0:00:24.8]} 47... Rd8 {[%clk
0:00:10.9]} 48. Qe4 {[%clk 0:00:17.2]} 48... b3 {[%clk 0:00:09]} 49. Qe7 {[%clk
0:00:18.7]} 49... Rf8 {[%clk 0:00:09.9]} 50. axb3 {[%clk 0:00:19.9]} 50... axb3
{[%clk 0:00:11.8]} 51. Qc7 {[%clk 0:00:21.1]} 51... Qd5 {[%clk 0:00:09.1]} 52.
Rbf1 {[%clk 0:00:18.2]} 52... c2 {[%clk 0:00:09.1]} 53. Rf3 {[%clk 0:00:18.8]}
53... Qe6 {[%clk 0:00:05.1]} 54. R3f2 {[%clk 0:00:19.2]} 54... Rc8 {[%clk
0:00:06]} 55. Qf4 {[%clk 0:00:19.2]} 55... b2 {[%clk 0:00:06.5]} 0-1

[Event "*** Titled Tuesday 3|2 Blitz"]
[Site "Chess.com"]
[Date "2015.04.07"]
[Round "8"]
[White "Dlugy"]
[Black "AnthonyWirig"]
[Result "1/2-1/2"]
[WhiteElo "2518"]
[BlackElo "2457"]
[TimeControl "180+2"]
[EndTime "12:47:50 PDT"]
[Termination "Game drawn - insufficient material"]

1. d4 {[%clk 0:03:01.9]} 1... d5 {[%clk 0:03:00.6]} 2. c4 {[%clk 0:03:03.1]}
2... e6 {[%clk 0:03:02.1]} 3. Nc3 {[%clk 0:03:04.3]} 3... Nf6 {[%clk 0:03:02.2]}
4. cxd5 {[%clk 0:03:05.6]} 4... exd5 {[%clk 0:03:02.8]} 5. Bg5 {[%clk
0:03:06.5]} 5... c6 {[%clk 0:03:02.5]} 6. Qc2 {[%clk 0:03:06.8]} 6... Be7 {[%clk
0:03:01.9]} 7. e3 {[%clk 0:03:07.9]} 7... h6 {[%clk 0:03:03.5]} 8. Bf4 {[%clk
0:03:08.4]} 8... Nbd7 {[%clk 0:03:04.3]} 9. Bd3 {[%clk 0:03:09.6]} 9... Nf8
{[%clk 0:03:05]} 10. Nge2 {[%clk 0:03:09.9]} 10... Ne6 {[%clk 0:03:06.1]} 11.
Bg3 {[%clk 0:03:10.8]} 11... h5 {[%clk 0:03:07.6]} 12. h3 {[%clk 0:03:11.6]}
12... h4 {[%clk 0:03:08.8]} 13. Bh2 {[%clk 0:03:12.8]} 13... a6 {[%clk
0:03:10.6]} 14. a3 {[%clk 0:03:12.8]} 14... Bd7 {[%clk 0:03:10]} 15. b4 {[%clk
0:03:13.9]} 15... b5 {[%clk 0:03:10.6]} 16. O-O {[%clk 0:03:08.8]} 16... Qb6
{[%clk 0:03:10.6]} 17. Be5 {[%clk 0:03:03.3]} 17... O-O {[%clk 0:03:08.4]} 18.
e4 {[%clk 0:03:04.8]} 18... dxe4 {[%clk 0:03:05.4]} 19. Nxe4 {[%clk 0:03:06]}
19... Nxe4 {[%clk 0:03:02.6]} 20. Bxe4 {[%clk 0:03:07.3]} 20... Rac8 {[%clk
0:03:02.8]} 21. Bf5 {[%clk 0:03:04.9]} 21... a5 {[%clk 0:02:59.9]} 22. bxa5
{[%clk 0:03:00.2]} 22... Qxa5 {[%clk 0:03:00.4]} 23. Nf4 {[%clk 0:03:01.4]}
23... c5 {[%clk 0:02:46.3]} 24. Nxe6 {[%clk 0:02:43.5]} 24... Bxe6 {[%clk
0:02:38.6]} 25. Bxe6 {[%clk 0:02:36.3]} 25... fxe6 {[%clk 0:02:40.5]} 26. Qe4
{[%clk 0:02:19.8]} 26... c4 {[%clk 0:02:13.8]} 27. Qg4 {[%clk 0:02:20.4]} 27...
Rf7 {[%clk 0:02:15]} 28. Qxe6 {[%clk 0:02:20.9]} 28... Qa8 {[%clk 0:02:16.6]}
29. d5 {[%clk 0:02:20.3]} 29... Bc5 {[%clk 0:02:08.8]} 30. Qg4 {[%clk 0:01:50]}
30... Re8 {[%clk 0:01:51.7]} 31. Bd4 {[%clk 0:01:50.4]} 31... Qxd5 {[%clk
0:01:50.8]} 32. Bxc5 {[%clk 0:01:51.1]} 32... Qxc5 {[%clk 0:01:51.6]} 33. Qxh4
{[%clk 0:01:52.7]} 33... c3 {[%clk 0:01:49.4]} 34. Qb4 {[%clk 0:01:48.1]} 34...
Qxb4 {[%clk 0:01:36.1]} 35. axb4 {[%clk 0:01:49.2]} 35... Re2 {[%clk 0:01:23.8]}
36. Ra8+ {[%clk 0:01:35.1]} 36... Kh7 {[%clk 0:01:21.5]} 37. Rc8 {[%clk
0:01:36.1]} 37... c2 {[%clk 0:01:18.2]} 38. g3 {[%clk 0:01:34.4]} 38... Rd7
{[%clk 0:01:12.8]} 39. Kg2 {[%clk 0:01:35.1]} 39... Rd3 {[%clk 0:01:00.8]} 40.
Rc5 {[%clk 0:01:27]} 40... Kg6 {[%clk 0:00:51.3]} 41. h4 {[%clk 0:01:26.5]}
41... Kf6 {[%clk 0:00:48.6]} 42. Kh3 {[%clk 0:01:19.9]} 42... Ke6 {[%clk
0:00:41.2]} 43. Rc1 {[%clk 0:01:20.7]} 43... Rdd2 {[%clk 0:00:40.7]} 44. f4
{[%clk 0:01:21.3]} 44... Kd6 {[%clk 0:00:32.9]} 45. Kg4 {[%clk 0:01:22.3]} 45...
Rg2 {[%clk 0:00:34.6]} 46. Rc3 {[%clk 0:01:19.2]} 46... Kd5 {[%clk 0:00:34.7]}
47. h5 {[%clk 0:01:19.5]} 47... Kd4 {[%clk 0:00:36.1]} 48. Rc7 {[%clk
0:01:20.6]} 48... Kd3 {[%clk 0:00:20.9]} 49. Rxg7 {[%clk 0:01:21.5]} 49... Kc3
{[%clk 0:00:18.5]} 50. Rc7+ {[%clk 0:01:18.8]} 50... Kxb4 {[%clk 0:00:19.8]} 51.
h6 {[%clk 0:01:19.1]} 51... Rh2 {[%clk 0:00:21.3]} 52. h7 {[%clk 0:01:11.1]}
52... Kb3 {[%clk 0:00:22.6]} 53. f5 {[%clk 0:01:11.8]} 53... Kb2 {[%clk
0:00:21.7]} 54. Rf1 {[%clk 0:01:06.7]} 54... Rd1 {[%clk 0:00:18.6]} 55. Rf4
{[%clk 0:00:50.4]} 55... Kb3 {[%clk 0:00:13.7]} 56. f6 {[%clk 0:00:44.1]} 56...
Rxh7 {[%clk 0:00:09.7]} 57. f7 {[%clk 0:00:19.4]} 57... Rg7+ {[%clk 0:00:10.7]}
58. Kh3 {[%clk 0:00:15.2]} 58... Rh7+ {[%clk 0:00:05.5]} 59. Kg4 {[%clk
0:00:12.9]} 59... Rg7+ {[%clk 0:00:06.2]} 60. Kh3 {[%clk 0:00:10.6]} 60... Rh7+
{[%clk 0:00:07]} 61. Kg2 {[%clk 0:00:12.1]} 61... Rxf7 {[%clk 0:00:05.9]} 62.
Rfxf7 {[%clk 0:00:12.8]} 62... c1=Q {[%clk 0:00:07.8]} 63. Rxc1 {[%clk 0:00:13]}
63... Rxc1 {[%clk 0:00:09.7]} 64. g4 {[%clk 0:00:14.2]} 64... b4 {[%clk
0:00:10.1]} 65. g5 {[%clk 0:00:15.4]} 65... Rc5 {[%clk 0:00:11.8]} 66. Rg7
{[%clk 0:00:16.6]} 66... Kc2 {[%clk 0:00:12.8]} 67. Kf3 {[%clk 0:00:17.7]} 67...
b3 {[%clk 0:00:14.4]} 68. Kf4 {[%clk 0:00:18.7]} 68... Rb5 {[%clk 0:00:14.2]}
69. Rc7+ {[%clk 0:00:19.1]} 69... Kd2 {[%clk 0:00:15.8]} 70. Rd7+ {[%clk
0:00:19]} 70... Ke2 {[%clk 0:00:17.3]} 71. Rh7 {[%clk 0:00:15.2]} 71... b2
{[%clk 0:00:17.1]} 72. Rh1 {[%clk 0:00:16.5]} 72... b1=Q {[%clk 0:00:14.2]} 73.
Rxb1 {[%clk 0:00:17.4]} 73... Rxb1 {[%clk 0:00:16.1]} 74. g6 {[%clk 0:00:19.2]}
74... Kd3 {[%clk 0:00:14.2]} 75. Kf5 {[%clk 0:00:19.7]} 75... Kd4 {[%clk
0:00:14.9]} 76. g7 {[%clk 0:00:20.1]} 76... Rg1 {[%clk 0:00:15.9]} 77. Kf6
{[%clk 0:00:21.4]} 77... Kd5 {[%clk 0:00:17.2]} 78. Kf7 {[%clk 0:00:22.8]} 78...
Rf1+ {[%clk 0:00:17.8]} 79. Ke7 {[%clk 0:00:23.9]} 79... Rg1 {[%clk 0:00:19]}
80. Kf7 {[%clk 0:00:25.2]} 80... Rf1+ {[%clk 0:00:20.7]} 81. Ke7 {[%clk
0:00:25.7]} 81... Rg1 {[%clk 0:00:22.3]} 82. Kf7 {[%clk 0:00:27]} 82... Rxg7+
{[%clk 0:00:23.8]} 83. Kxg7 {[%clk 0:00:28.3]} 1/2-1/2

[Event "*** Titled Tuesday 3|2 Blitz"]
[Site "Chess.com"]
[Date "2015.04.07"]
[Round "9"]
[White "brauliocuarta"]
[Black "Mazetovic"]
[Result "0-1"]
[WhiteElo "2081"]
[BlackElo "2437"]
[TimeControl "180+2"]
[EndTime "12:56:11 PDT"]
[Termination "Mazetovic won by resignation"]

1. d4 {[%clk 0:03:01.9]} 1... Nf6 {[%clk 0:02:54.7]} 2. c4 {[%clk 0:03:02.3]}
2... g6 {[%clk 0:02:55.8]} 3. Nc3 {[%clk 0:03:03]} 3... Bg7 {[%clk 0:02:57.3]}
4. e4 {[%clk 0:03:03.3]} 4... O-O {[%clk 0:02:58.2]} 5. f4 {[%clk 0:03:02.9]}
5... d6 {[%clk 0:02:59.3]} 6. Nf3 {[%clk 0:03:01.3]} 6... c5 {[%clk 0:03:00.9]}
7. d5 {[%clk 0:03:02]} 7... e6 {[%clk 0:03:02]} 8. Be2 {[%clk 0:03:01.4]} 8...
exd5 {[%clk 0:03:03.1]} 9. cxd5 {[%clk 0:03:02.9]} 9... Bg4 {[%clk 0:03:04.5]}
10. O-O {[%clk 0:03:01.2]} 10... a6 {[%clk 0:03:05.7]} 11. e5 {[%clk 0:02:59.2]}
11... Nfd7 {[%clk 0:02:55.3]} 12. e6 {[%clk 0:02:49.4]} 12... Nf6 {[%clk
0:02:38.9]} 13. h3 {[%clk 0:02:43.4]} 13... Bxf3 {[%clk 0:02:35.3]} 14. Bxf3
{[%clk 0:02:44.9]} 14... b5 {[%clk 0:02:36.1]} 15. Re1 {[%clk 0:02:41.5]} 15...
Ra7 {[%clk 0:02:37]} 16. f5 {[%clk 0:02:39.5]} 16... gxf5 {[%clk 0:02:33.7]} 17.
Bf4 {[%clk 0:02:32.9]} 17... b4 {[%clk 0:02:19.4]} 18. Na4 {[%clk 0:02:31.4]}
18... Re7 {[%clk 0:02:15.8]} 19. Qd3 {[%clk 0:02:15.2]} 19... fxe6 {[%clk
0:02:11.3]} 20. dxe6 {[%clk 0:02:14.6]} 20... Ne4 {[%clk 0:02:11.6]} 21. Bxe4
{[%clk 0:02:04.1]} 21... fxe4 {[%clk 0:02:05.5]} 22. Rxe4 {[%clk 0:02:02.6]}
22... d5 {[%clk 0:02:03.8]} 23. Bxb8 {[%clk 0:01:39.4]} 23... dxe4 {[%clk
0:01:58.4]} 24. Qxd8 {[%clk 0:01:37.2]} 24... Rxd8 {[%clk 0:01:58.3]} 25. Bf4
{[%clk 0:01:28.7]} 25... Bd4+ {[%clk 0:01:50.3]} 26. Kh1 {[%clk 0:01:18.3]}
26... Rxe6 {[%clk 0:01:51.4]} 27. Rd1 {[%clk 0:01:15.2]} 27... Rf8 {[%clk
0:01:42.2]} 28. g3 {[%clk 0:01:11.7]} 28... e3 {[%clk 0:01:40]} 29. Kg2 {[%clk
0:01:02.5]} 29... e2 {[%clk 0:01:27.4]} 30. Re1 {[%clk 0:01:01.8]} 30... c4
{[%clk 0:01:25.7]} 31. Kf3 {[%clk 0:00:50.7]} 31... Re3+ {[%clk 0:01:25.5]} 32.
Kg2 {[%clk 0:00:46.9]} 32... Rxf4 {[%clk 0:01:27]} 33. gxf4 {[%clk 0:00:46]}
33... c3 {[%clk 0:01:28.5]} 34. bxc3 {[%clk 0:00:34.1]} 34... bxc3 {[%clk
0:01:16.4]} 35. Kf2 {[%clk 0:00:34.3]} 35... c2 {[%clk 0:01:16.4]} 36. f5 {[%clk
0:00:14.1]} 36... Ra3+ {[%clk 0:00:46.4]} 37. Kxe2 {[%clk 0:00:13.3]} 37... Re3+
{[%clk 0:00:47.3]} 38. Kd2 {[%clk 0:00:09.2]} 38... Rxe1 {[%clk 0:00:48.8]} 0-1

[Event "*** Titled Tuesday 3|2 Blitz"]
[Site "Chess.com"]
[Date "2015.04.07"]
[Round "9"]
[White "chesstatour"]
[Black "guillead1"]
[Result "0-1"]
[WhiteElo "1956"]
[BlackElo "2356"]
[TimeControl "180+2"]
[EndTime "12:56:21 PDT"]
[Termination "guillead1 won by resignation"]

1. d4 {[%clk 0:03:01.9]} 1... g6 {[%clk 0:03:00.8]} 2. c4 {[%clk 0:02:57.3]}
2... Bg7 {[%clk 0:02:54.7]} 3. Nc3 {[%clk 0:02:57.9]} 3... f5 {[%clk 0:02:55.7]}
4. e4 {[%clk 0:02:58.2]} 4... fxe4 {[%clk 0:02:56.7]} 5. Nxe4 {[%clk 0:02:58.6]}
5... Nf6 {[%clk 0:02:58.6]} 6. Ng5 {[%clk 0:02:59.1]} 6... O-O {[%clk
0:02:59.4]} 7. Bd3 {[%clk 0:02:59.8]} 7... d5 {[%clk 0:03:01.3]} 8. Ne2 {[%clk
0:02:21.6]} 8... Nc6 {[%clk 0:03:03.2]} 9. O-O {[%clk 0:02:07.4]} 9... e5 {[%clk
0:02:45.4]} 10. cxd5 {[%clk 0:01:54.2]} 10... Qxd5 {[%clk 0:02:31.9]} 11. Nc3
{[%clk 0:01:23.8]} 11... Qxd4 {[%clk 0:02:20.8]} 12. Be3 {[%clk 0:01:01.7]}
12... Qb4 {[%clk 0:02:19.8]} 13. Qe2 {[%clk 0:00:54.7]} 13... h6 {[%clk
0:01:40.7]} 14. Nge4 {[%clk 0:00:47.5]} 14... Nxe4 {[%clk 0:01:25.3]} 15. Nxe4
{[%clk 0:00:47.3]} 15... Nd4 {[%clk 0:01:23.9]} 16. Bxd4 {[%clk 0:00:41]} 16...
exd4 {[%clk 0:01:21.8]} 17. Ng3 {[%clk 0:00:32.7]} 17... Qb6 {[%clk 0:01:16.7]}
18. Qc2 {[%clk 0:00:24.9]} 18... Kh7 {[%clk 0:01:05.8]} 19. h4 {[%clk
0:00:20.6]} 19... Bd7 {[%clk 0:01:02.5]} 20. h5 {[%clk 0:00:17.7]} 20... Be8
{[%clk 0:01:04.1]} 21. Rac1 {[%clk 0:00:07.7]} 21... Rc8 {[%clk 0:00:58.7]} 22.
Qc5 {[%clk 0:00:07.9]} 22... Qxc5 {[%clk 0:00:57.6]} 23. Rxc5 {[%clk 0:00:09.8]}
23... c6 {[%clk 0:00:56.1]} 24. Rd1 {[%clk 0:00:09]} 24... Bf7 {[%clk
0:00:56.8]} 25. b3 {[%clk 0:00:09]} 25... Rfe8 {[%clk 0:00:55.2]} 26. Bb1 {[%clk
0:00:08.5]} 26... Bf8 {[%clk 0:00:55.2]} 27. Rc2 {[%clk 0:00:08]} 27... c5
{[%clk 0:00:56.4]} 28. Rcd2 {[%clk 0:00:09]} 28... Kg7 {[%clk 0:00:56.5]} 29. f4
{[%clk 0:00:07.4]} 29... Bd6 {[%clk 0:00:49.3]} 30. hxg6 {[%clk 0:00:06.9]}
30... Bxg6 {[%clk 0:00:50.3]} 31. f5 {[%clk 0:00:07.4]} 31... Bxg3 {[%clk
0:00:49.8]} 32. fxg6 {[%clk 0:00:08.6]} 32... Re3 {[%clk 0:00:49]} 33. Rd3
{[%clk 0:00:07.7]} 33... Rce8 {[%clk 0:00:49.9]} 34. Rxe3 {[%clk 0:00:08.2]}
34... Rxe3 {[%clk 0:00:47.2]} 35. Bd3 {[%clk 0:00:08.7]} 35... h5 {[%clk
0:00:43.5]} 36. a4 {[%clk 0:00:08.5]} 36... h4 {[%clk 0:00:44]} 37. a5 {[%clk
0:00:09]} 37... b6 {[%clk 0:00:44.7]} 38. axb6 {[%clk 0:00:08.6]} 38... axb6
{[%clk 0:00:46.6]} 39. Rc1 {[%clk 0:00:08.8]} 39... Rxd3 {[%clk 0:00:44.4]} 0-1

[Event "*** Titled Tuesday 3|2 Blitz"]
[Site "Chess.com"]
[Date "2015.04.07"]
[Round "9"]
[White "rhungaski"]
[Black "lukas_111111"]
[Result "1-0"]
[WhiteElo "2450"]
[BlackElo "2330"]
[TimeControl "180+2"]
[EndTime "12:56:30 PDT"]
[Termination "rhungaski won by resignation"]

1. d4 {[%clk 0:03:01.9]} 1... Nf6 {[%clk 0:03:00.1]} 2. c4 {[%clk 0:03:03.3]}
2... g6 {[%clk 0:03:01.2]} 3. Nc3 {[%clk 0:03:04.1]} 3... d5 {[%clk 0:03:02]} 4.
cxd5 {[%clk 0:03:04.6]} 4... Nxd5 {[%clk 0:03:02.6]} 5. e4 {[%clk 0:03:06.2]}
5... Nxc3 {[%clk 0:03:03.4]} 6. bxc3 {[%clk 0:03:08.1]} 6... Bg7 {[%clk
0:03:04.7]} 7. Be3 {[%clk 0:03:09.3]} 7... c5 {[%clk 0:03:05.7]} 8. Qd2 {[%clk
0:03:10.8]} 8... Qa5 {[%clk 0:03:04.6]} 9. Nf3 {[%clk 0:03:09.7]} 9... O-O
{[%clk 0:03:05.1]} 10. Rc1 {[%clk 0:03:11.2]} 10... Rd8 {[%clk 0:03:05.2]} 11.
d5 {[%clk 0:03:12.1]} 11... e6 {[%clk 0:03:06.4]} 12. c4 {[%clk 0:03:11.8]}
12... Qxd2+ {[%clk 0:03:05.8]} 13. Nxd2 {[%clk 0:03:13.7]} 13... Na6 {[%clk
0:03:06.9]} 14. Be2 {[%clk 0:03:03.1]} 14... Nb4 {[%clk 0:02:47.3]} 15. Bxc5
{[%clk 0:02:21.5]} 15... Nxa2 {[%clk 0:02:46.2]} 16. Rc2 {[%clk 0:02:21.4]}
16... Nc3 {[%clk 0:02:46.9]} 17. Bb4 {[%clk 0:02:19.5]} 17... Nxe2 {[%clk
0:02:40.4]} 18. Kxe2 {[%clk 0:02:21.4]} 18... b5 {[%clk 0:02:23]} 19. Be7 {[%clk
0:01:28.8]} 19... Rd7 {[%clk 0:02:17.5]} 20. d6 {[%clk 0:01:28.8]} 20... bxc4
{[%clk 0:01:59.5]} 21. Nxc4 {[%clk 0:01:25.9]} 21... Ba6 {[%clk 0:01:59.2]} 22.
Kf3 {[%clk 0:01:19.8]} 22... f5 {[%clk 0:01:26.4]} 23. exf5 {[%clk 0:01:14.1]}
23... gxf5 {[%clk 0:01:11.9]} 24. Kg3 {[%clk 0:00:21.9]} 24... Kf7 {[%clk
0:00:25.2]} 25. f4 {[%clk 0:00:18.4]} 25... Rg8 {[%clk 0:00:24.1]} 26. Kh3
{[%clk 0:00:16.7]} 26... Bb7 {[%clk 0:00:10.1]} 27. Ne5+ {[%clk 0:00:07.1]}
27... Bxe5 {[%clk 0:00:09.8]} 28. fxe5 {[%clk 0:00:09]} 28... Be4 {[%clk
0:00:08.6]} 29. Rf2 {[%clk 0:00:08]} 29... Rb7 {[%clk 0:00:08.5]} 30. Re1 {[%clk
0:00:06.6]} 30... Rb3+ {[%clk 0:00:08.7]} 31. g3 {[%clk 0:00:08.1]} 31... Rg6
{[%clk 0:00:09.5]} 32. Rxe4 {[%clk 0:00:09.2]} 32... Rh6+ {[%clk 0:00:08.2]} 33.
Rh4 {[%clk 0:00:10.7]} 1-0

[Event "*** Titled Tuesday 3|2 Blitz"]
[Site "Chess.com"]
[Date "2015.04.07"]
[Round "9"]
[White "OIAM03"]
[Black "chessloveyou"]
[Result "0-1"]
[WhiteElo "1944"]
[BlackElo "2119"]
[TimeControl "180+2"]
[EndTime "12:56:39 PDT"]
[Termination "chessloveyou won on time"]

1. e4 {[%clk 0:03:01.9]} 1... c6 {[%clk 0:02:56.7]} 2. Nf3 {[%clk 0:03:01.3]}
2... d5 {[%clk 0:02:57.1]} 3. Nc3 {[%clk 0:03:01.9]} 3... Bg4 {[%clk 0:02:57.2]}
4. Be2 {[%clk 0:03:00.4]} 4... d4 {[%clk 0:02:56]} 5. Nxd4 {[%clk 0:02:51.4]}
5... Bxe2 {[%clk 0:02:41.6]} 6. Ndxe2 {[%clk 0:02:50.9]} 6... e5 {[%clk
0:02:42.4]} 7. Ng3 {[%clk 0:02:50.1]} 7... Nf6 {[%clk 0:02:29.7]} 8. O-O {[%clk
0:02:50]} 8... Nbd7 {[%clk 0:02:27]} 9. d3 {[%clk 0:02:41.5]} 9... Qc7 {[%clk
0:02:26.9]} 10. f4 {[%clk 0:02:37.6]} 10... Bc5+ {[%clk 0:02:22.2]} 11. Kh1
{[%clk 0:02:35.9]} 11... O-O-O {[%clk 0:02:22.4]} 12. a4 {[%clk 0:02:14]} 12...
h5 {[%clk 0:02:15.7]} 13. fxe5 {[%clk 0:02:02.3]} 13... Ng4 {[%clk 0:02:09.4]}
14. d4 {[%clk 0:01:30.4]} 14... Ndxe5 {[%clk 0:02:07.6]} 15. Bf4 {[%clk
0:01:25.8]} 15... Rxd4 {[%clk 0:02:02.5]} 16. Qe2 {[%clk 0:01:17.9]} 16... g6
{[%clk 0:01:44.8]} 17. h3 {[%clk 0:01:14]} 17... f6 {[%clk 0:01:29.5]} 18. Nd1
{[%clk 0:00:45.7]} 18... g5 {[%clk 0:01:14.8]} 19. Be3 {[%clk 0:00:38.2]} 19...
Nxe3 {[%clk 0:01:02.1]} 20. Nxe3 {[%clk 0:00:38.7]} 20... Ng6 {[%clk 0:00:45.7]}
21. Ngf5 {[%clk 0:00:37.2]} 21... Rxe4 {[%clk 0:00:46.1]} 22. Qd3 {[%clk
0:00:20.4]} 22... Rhe8 {[%clk 0:00:45.5]} 23. Nc4 {[%clk 0:00:16.3]} 23... R4e6
{[%clk 0:00:25.5]} 24. Nfd6+ {[%clk 0:00:10.1]} 24... Bxd6 {[%clk 0:00:25.7]}
25. Nxd6+ {[%clk 0:00:10.8]} 25... Qxd6 {[%clk 0:00:23.5]} 26. Qxg6 {[%clk
0:00:11.4]} 26... Kc7 {[%clk 0:00:23.9]} 27. Qxh5 {[%clk 0:00:12]} 27... Re2
{[%clk 0:00:20.9]} 28. Qg4 {[%clk 0:00:11.4]} 28... Qd5 {[%clk 0:00:21.1]} 29.
Qf3 {[%clk 0:00:08.1]} 29... Qxf3 {[%clk 0:00:19.3]} 30. Rxf3 {[%clk 0:00:09.1]}
30... R8e6 {[%clk 0:00:18.8]} 31. Rc3 {[%clk 0:00:06.4]} 31... Rd2 {[%clk
0:00:18.3]} 32. Rf1 {[%clk 0:00:06.3]} 32... Ree2 {[%clk 0:00:18.8]} 33. Rcf3
{[%clk 0:00:05.2]} 33... Rxg2 {[%clk 0:00:18.6]} 0-1